Cogmind - Beta 12 @@@ ROGUE MODE // 2023.11.12 @ 12:25:34 Player: Ev Result: Self-destructed Performance ------------- Evolutions (1) 500 Regions Visited (3) 600 Robots Destroyed (29) 145 Value Destroyed (636) 636 Prototype IDs (2) 40 Alien Tech Used (0) 0 Bonus (0) 0 TOTAL SCORE: 1921 Bonus ------- None Cogmind --------- Core Integrity 271/400 Matter 204/300 Energy 140/140 System Corruption 0% Temperature Cool (0) Movement Walking (190) Ox1 Location -9/Mines Parts ------- > --- POWER (1) -------- Light Deuterium Engine > --- PROPULSION (2) --- Aluminum Leg Aluminum Leg > --- UTILITY (4) ------ Medium Storage Unit Sensor Array Signal Interpreter Light Armor Plating > --- WEAPON (2) ------- Field Laser Field Laser > --- INVENTORY (10) --- Light Deuterium Engine Cooling System Cooling System Medium Storage Unit Weapon Shielding Medium Armor Plating Medium Laser Field Laser Field Laser Heavy Assault Rifle Peak State ------------ > --- POWER ------------ Light Deuterium Engine > --- PROPULSION ------- Aluminum Leg Aluminum Leg > --- UTILITY ---------- Medium Storage Unit Sensor Array Signal Interpreter Light Armor Plating > --- WEAPON ----------- Field Laser Field Laser > --- INVENTORY -------- Light Deuterium Engine Cooling System Cooling System Medium Storage Unit Weapon Shielding Medium Armor Plating Medium Laser Field Laser Field Laser Heavy Assault Rifle [Rating: 17] Favorites ----------- Power Ion Engine Engine Ion Engine Propulsion Aluminum Leg Leg Aluminum Leg Utility Medium Storage Unit Device Sensor Array Storage Medium Storage Unit Processor Signal Interpreter Protection Light Armor Plating Weapon Medium Laser Energy Gun Medium Laser Ballistic Gun Heavy Assault Rifle Build | -11 -10 -9 -9 ------- Run | Jun Mat Mat Min Slots Evolved 2 | . . 2 . Power . | . . . . Propulsion . | . . . . Utility 2 | . . 2 . Weapon . | . . . . Parts Attached 17 | 6 2 7 2 Power 2 | 1 . 1 . Engine 2 | 1 . 1 . Core . | . . . . Reactor . | . . . . Propulsion 4 | 2 . 2 . Treads . | . . . . Leg 4 | 2 . 2 . Wheel . | . . . . Hover . | . . . . Flight . | . . . . Utility 6 | 1 2 3 . Device 2 | . 1 1 . Storage 2 | 1 1 . . Processor 1 | . . 1 . Hackware . | . . . . Protection 1 | . . 1 . Artifact . | . . . . Weapon 5 | 2 . 1 2 Energy Gun 3 | 1 . . 2 Energy Cannon . | . . . . Ballistic Gun 2 | 1 . 1 . Ballistic Cannon . | . . . . Launcher . | . . . . Special Weapon . | . . . . Impact Weapon . | . . . . Slashing Weapon . | . . . . Piercing Weapon . | . . . . Special Melee Weapon . | . . . . Unidentified Prototypes . | . . . . Parts Lost 2 | . . 2 . Power . | . . . . Propulsion 2 | . . 2 . Utility . | . . . . Weapon . | . . . . Highest Loss Streak 1 | . . 1 . To Critical Strikes . | . . . . Average Slot Usage (%) 98 | . 96 99 100 Engine 11 | . 14 11 11 Leg 23 | . 28 22 22 Device 12 | . 10 14 11 Storage 11 | . 14 11 11 Processor 8 | . . 10 11 Protection 6 | . . 7 11 Energy Gun 11 | . 14 11 12 Ballistic Gun 11 | . 14 11 9 Naked Turns . | . . . . Heaviest Build 24 | 14 20 24 24 Greatest Support 20 | 20 20 20 20 Greatest Overweight (x) 1 | . . 1 1 Average Overweight (x) . | . . . 1 Largest Inventory Capacity 10 | 8 10 10 10 Average Capacity 9 | 6 8 10 10 Most Carried 10 | 2 5 10 10 Average Carried 6 | . 3 7 10 Final Capacity 10 | 8 10 10 10 Final Carried 10 | 1 5 10 10 Class Distribution -------------------- 72% | Scavenger-Mutant 27% | Mutant Dominant Class ---------------- Mutant | -10/Materials Scavenger-Mutant | -9/Materials Scavenger-Mutant | -9/Mines Resources | -11 -10 -9 -9 ----------- Run | Jun Mat Mat Min Matter Collected 624 | 207 144 247 26 Remotely . | . . . . Salvage Created 999 | . 275 724 . Parts 64 | . 19 45 . Haulers Intercepted 3 | . 1 2 . Recyclers Shooed . | . . . . Parts Field Recycled . | . . . . Retrieved Matter . | . . . . Parts Self-Destructed . | . . . . Prevented . | . . . . Kills | -11 -10 -9 -9 ------- Run | Jun Mat Mat Min Combat Hostiles Destroyed 20 | . 5 15 . Guns 20 | . 5 15 . Classes Destroyed 6 | . 4 2 . Hauler 3 | . 1 2 . Recycler 1 | . . 1 . Watcher 5 | . 3 2 . Swarmer 9 | . 3 6 . Grunt 7 | . 2 5 . Sentry 4 | . . 4 . Best Kill Streak 5 | . 5 3 . Combat Bots Only 4 | . 4 3 . Max Kills in Single Turn 1 | . 1 1 . Gunslinging . | . . . . Exploded . | . . . . Melee . | . . . . Uniques/NPCs Destroyed . | . . . . Combat | -11 -10 -9 -9 -------- Run | Jun Mat Mat Min Damage Taken 838 | . 137 701 . Core 178 | . 49 129 . Absorbed by Shields . | . . . . Core Remaining (%) 90 | 100 80 . . Volleys Fired 106 | . 27 69 10 Largest 2 | . 2 2 2 Hottest 126 | . 70 73 126 Shots Fired 212 | . 54 138 20 Gun 212 | . 54 138 20 Cannon . | . . . . Launcher . | . . . . Special . | . . . . Kinetic 100 | . 27 69 4 Thermal 112 | . 27 69 16 Explosive . | . . . . Electromagnetic . | . . . . Robot Hit Streak 7 | . 5 7 . Robot Miss Streak 6 | . 2 6 . Penetration Max . | . . . . Secondary Targets 2 | . . 2 . Max Gunslinging Chain 1 | . . 1 . Shots Hit Robots 107 | . 27 80 . Core Hits 42 | . 12 30 . Critical Kills . | . . . . Critical Parts Destroyed . | . . . . Critical Strikes 4 | . 1 3 . Burn 4 | . 1 3 . Melee Attacks . | . . . . Impact . | . . . . Slashing . | . . . . Piercing . | . . . . Sneak Attacks . | . . . . Combat Hostiles . | . . . . Follow-up Attacks . | . . . . Damage Inflicted 1487 | . 360 1127 . Guns 1487 | . 360 1127 . Cannons . | . . . . Explosions . | . . . . Melee . | . . . . Ramming . | . . . . Kinetic 783 | . 183 600 . Thermal 704 | . 177 527 . Explosive . | . . . . Electromagnetic . | . . . . Impact . | . . . . Slashing . | . . . . Piercing . | . . . . Highest Corruption . | . . . . Average Corruption . | . . . . Corruption Purged . | . . . . Corruption Blocked . | . . . . Overload Shots . | . . . . Overflow Damage . | . . . . Projectiles . | . . . . Explosions . | . . . . Melee . | . . . . Knockbacks . | . . . . Impact . | . . . . Kinetic . | . . . . Secondary . | . . . . Self-Inflicted Damage . | . . . . Shots . | . . . . Rammed . | . . . . Targets Rammed . | . . . . Kicked . | . . . . Crushed . | . . . . Highest Temperature 417 | . 126 135 417 Average Temperature 70 | . 55 41 163 Received Heat Transfer 252 | . 69 183 . Effects 1 | . . . 1 Matter Decay 1 | . . . 1 Siege Activations . | . . . . Robots Corrupted . | . . . . Combat Hostiles . | . . . . Parts Fried . | . . . . Impact Corruptions . | . . . . Robots Melted . | . . . . Combat Hostiles . | . . . . Parts Melted 5 | . 3 2 . Heat Transferred 2368 | . 592 1776 . Parts Sabotaged . | . . . . Parts Stolen . | . . . . Parts Stripped . | . . . . Power Chain Reactions . | . . . . Missiles Intercepted . | . . . . Alert | -11 -10 -9 -9 ------- Run | Jun Mat Mat Min Peak Influence 260 | . 260 214 48 Initial 48 | . . 33 48 Average 90 | . 106 95 48 Maximum Alert Level 1 | . 1 1 . Low Security (%) 88 | 100 75 91 100 Level 1 11 | . 24 8 . Level 2 . | . . . . Level 3 . | . . . . Level 4 . | . . . . Level 5 . | . . . . High Security . | . . . . Max Security . | . . . . Squads Dispatched 3 | . . 3 . Investigation . | . . . . Extermination . | . . . . Reinforcement 3 | . . 3 . Assault . | . . . . Garrison . | . . . . Intercept . | . . . . Searches Triggered . | . . . . Construction Impeded . | . . . . Haulers Reinforced . | . . . . Active Scanning Responses . | . . . . Cargo Convoy Interrupts . | . . . . Stealth | -11 -10 -9 -9 --------- Run | Jun Mat Mat Min Distress Signals 2 | . 2 . . Communications Jammed . | . . . . Distress Signals . | . . . . Times Spotted 44 | . 13 31 . Peak Tracking Total 4 | . 4 4 . Tactical Retreats 4 | . 2 2 . Traps | -11 -10 -9 -9 ------- Run | Jun Mat Mat Min Traps Triggered . | . . . . Indirectly . | . . . . Trap Hack Attempts . | . . . . Triggered . | . . . . Disarmed . | . . . . Reprogrammed . | . . . . Reused . | . . . . Traps Extracted . | . . . . Installed . | . . . . Triggered . | . . . . Machines | -11 -10 -9 -9 ---------- Run | Jun Mat Mat Min Machines Disabled 1 | . 1 . . Max in Single Turn 1 | . 1 . . Machines Repaired . | . . . . Machines Sabotaged . | . . . . Overloaded Fab Kills . | . . . . Hacking | -11 -10 -9 -9 --------- Run | Jun Mat Mat Min Machines Accessed 6 | . 3 3 . Terminals 5 | . 3 2 . Fabricators . | . . . . Repair Stations . | . . . . Recycling Units 1 | . . 1 . Scanalyzers . | . . . . Garrison Access . | . . . . Total Hacks 13 | . 7 6 . Successful 7 | . 4 3 . Failed 6 | . 3 3 . Catastrophic . | . . . . Database Lockouts . | . . . . Manual 1 | . . 1 . Terminals 10 | . 7 3 . Fabricators . | . . . . Repair Stations . | . . . . Recycling Units 3 | . . 3 . Scanalyzers . | . . . . Garrison Access . | . . . . Terminal Hacks 6 | . 4 2 . Prototype ID Bank 1 | . 1 . . Branch Access Points 1 | . 1 . . Alert Level 1 | . . 1 . Locate Traps 1 | . . 1 . Registered Prototypes 1 | . 1 . . Zone Layout 1 | . 1 . . Fabricator Hacks . | . . . . Repair Station Hacks . | . . . . Recycling Unit Hacks . | . . . . Scanalyzer . | . . . . Garrison Access Hacks . | . . . . Unauthorized Hacks 1 | . . 1 . Terminals 1 | . . 1 . Track 1 | . . 1 . Fabricators . | . . . . Repair Stations . | . . . . Recycling Units . | . . . . Scanalyzers . | . . . . Garrison Access . | . . . . Data Cores Recovered . | . . . . Used . | . . . . Hacking Detections 4 | . 2 2 . Full Trace Events . | . . . . Feedback Events . | . . . . Feedback Blocked . | . . . . Robot Schematics Acquired . | . . . . Robots Built . | . . . . Authchips . | . . . . Time . | . . . . Total Robot Build Rating . | . . . . Part Schematics Acquired . | . . . . Parts Built . | . . . . Authchips . | . . . . Time . | . . . . Total Part Build Rating . | . . . . Parts Repaired . | . . . . Time . | . . . . Parts Recycled . | . . . . Recycled Matter . | . . . . Retrieved Matter . | . . . . Retrieved Components . | . . . . Parts Scanalyzed . | . . . . Part Schematics Acquired . | . . . . Parts Damaged . | . . . . Bothacking | -11 -10 -9 -9 ------------ Run | Jun Mat Mat Min Used RIF Installer . | . . . . Robots Hacked . | . . . . Non-combat . | . . . . Combat . | . . . . Robot Hacks Applied . | . . . . Relay Couplers Released . | . . . . Fabnet Peak Effective % . | . . . . Robots Rewired . | . . . . Allies Hacked . | . . . . Hacks Repelled . | . . . . Allies | -11 -10 -9 -9 -------- Run | Jun Mat Mat Min Total Allies 2 | . . . 2 Largest Group 2 | . . . 2 Highest-Rated Group 45 | . . . 45 Highest-Rated Ally 31 | . . . 31 Total Orders . | . . . . Ally Attacks . | . . . . Total Damage . | . . . . Kills . | . . . . Allies Corrupted . | . . . . Allies Melted . | . . . . Intel | -11 -10 -9 -9 ------- Run | Jun Mat Mat Min Robot Analysis Total . | . . . . Derelict Logs Recovered 1 | . . . 1 Drone Launches . | . . . . Drone Recoveries . | . . . . Exploration | -11 -10 -9 -9 ------------- Run | Jun Mat Mat Min Turns Passed 2628 | 60 657 1621 290 Spaces Moved 1168 | 43 342 689 94 Core 9 | 9 . . . Treads . | . . . . Legs 1159 | 34 342 689 94 Wheels . | . . . . Hover . | . . . . Flight . | . . . . Fastest Speed 50 | 50 120 120 190 Average Speed 165 | 105 120 188 190 Slowest Speed 190 | 120 120 190 190 Overloaded Moves . | . . . . Propulsion Burnouts . | . . . . Robots Hopped . | . . . . Cave-ins Triggered . | . . . . Exploration Rate (%) 36 | 5 57 55 27 Regions Visited 3 Branch Regions 1 Pre-discovered Areas 1 | . . . 1 Known Exits Taken 1 | . . 1 . Unknown Exits Taken 2 | 1 1 . . Scrap Searched 1 | . . . 1 Spaces Dug . | . . . . Terrain Destroyed . | . . . . Melee . | . . . . Projectile . | . . . . AOE . | . . . . Terrain Rammed . | . . . . Walls Destroyed . | . . . . Machines Disabled . | . . . . Actions | -11 -10 -9 -9 --------- Run | Jun Mat Mat Min Total 1650 | 57 534 875 184 Wait 316 | 2 157 79 78 Move 1165 | 42 341 688 94 Hop . | . . . . Pick Up 33 | 7 6 20 . Fast Attach . | . . . . Attach 11 | 6 1 4 . Detach . | . . . . Swap 6 | . 1 3 2 Drop 13 | . 1 12 . Fire 106 | . 27 69 10 Melee . | . . . . Ram . | . . . . Kick . | . . . . Crush . | . . . . Escape Stasis . | . . . . Rewire . | . . . . Trap . | . . . . Miscellaneous . | . . . . Route ------- -11/Junkyard -10/Materials (discovered 3 exits: *Mat / *Min x2) -9/Materials -9/Mines History --------- Turn | Location | Event 3 | -11/Junkyard | Discovered new exit (range 15) 61 | -11/Junkyard | Entered Materials 79 | -10/Materials | Identified exit to Mines 303 | -10/Materials | Build established: Mutant 657 | -10/Materials | Discovered new exit (range 15) 718 | -10/Materials | Entered another Materials area 718 | -9/Materials | Evolved 2 slots: Utility x2 1040 | -9/Materials | Build established: Scavenger-Mutant 1679 | -9/Materials | Discovered new exit (range 14) 1744 | -9/Materials | Identified exit to Mines 2339 | -9/Materials | Entered Mines 2436 | -9/Mines | Learned location of Storage (-8) 2518 | -9/Mines | Excavation squad dispatched 2518 | -9/Mines | A large section of the Mines collapsed 2629 | -9/Mines | Self-destructed Last Messages --------------- 02227_ R-06 Scavenger collects Com. Wheel. 02241_ Destroyed Lgt. Ion Engine. LOCATION=MINES GOAL=ESCAPE Something is scanning the area. 02379_ Searching scrap... 02379_ Found Med. Matter Pod. 02379_ Found 26 Matter. 02380_ Acquired 26 matter. 02436_ Acquired derelict log, extracted data. World map updated: -8/Storage. 02491_ K-01 Serf collects debris. 02518_ VX-QFU(g) crushed by falling debris. 02518_ K-01 Serf crushed by falling debris. 02518_ K-01 Serf system corrupted by crushing effect. 02518_ LI-ASH(z) crushed by falling debris. 02518_ ALERT: Suspicious cave-in, suspected derelict activity in mines. Dispatching escorted excavation squad. 02518_ K-01 Serf system terminally corrupted. 02592_ Overheating: Matter decay (-60). Map ----- +----------------------------------------------------+ | ???????????# #???????????????????????? | | ???######## #???????????????????????? | | ####????????????????????? | | # #????????????????????? | | ? ## #????????????????????? | | ? ####### # ## #????????????????????? | | ? #?????##### #### #????????????????????? | | ? ????????????# #??# #????????????????????? | | ??????????????# #??# #????????????????????? | | ?????????????? #??# #????????????????????? | | ????????????? ???# #????????????????????? | | ???????????? ###???# #????????????????????? | | ???????????? ??????# #????????????????????? | | ???????????# ???????# #????????????????????? | | ???????????#????????# #????????????????????? | | ????????????????????# #????????????????????? | | ????????????????????# #????????????????????? | | ????????????????????# #???????###??????????? | | ????????????????????# #??????# ####x#?????? | | ????????????????????# #?????# #?????? | | ????????????????????# !#??### #?????? | | ????????????????????# ### x xx #?????? | | ????????????????????# x x x ##????? | | ????????????????????# x #????? | | ????????????????????####### #????? | | ??????????????????????# #@# ## #?????? | | ?????????????????????# ### ##???#####??????? | | ?????????????????????# #???????????????? | | ?????????????????????## xx#???????????????? | | ??????????????????????# ##???????????????? | | ??????????????????????## x##????????????????? | | ???????????????????????# #?????????????????? | | ???????????????????????# x#?????????????????? | | ??????????????????????? ?????????????????? | | ??????????????????????? ?????????????????? | | ??????????????????????? ?????????????????? | | ??????????????????????? ?????????????????? | | ???????????????????????# ?????????????????? | | ???????????????????????? ##?????????????????? | | ???????????????????????? ???????????????????? | | ???????????????????????? ???????????????????? | | ????????????????????????????????????????????? | | ????????????????????????????????????????????? | | ????????????????????????????????????????????? | | ????????????????????????????????????????????? | | ????????????????????????????????????????????? | | ????????????????????????????????????????????? | | ????????????????????????????????????????????? | | ????????????????????????????????????????????? | | ????????????????????????????????????????????? | +----------------------------------------------------+ Best States ------------- Heat Dissipation 42 Energy Generation 14 Energy Capacity 250 Matter Stores 300 Matter Capacity 300 Sight Range 16 Robot Scan Range 14 Terrain Scan Density 10 Armor Coverage 150 Evasion (%) 55 Item Schematics ----------------- None Robot Schematics ------------------ None Fabricated ------------ Nothing Alien Tech Used ----------------- None Achievements -------------- None Challenges ------------ None Game ------ Seed BarragePulseAccelerator Manual? 0 Play Time 00:17:19 Cumulative 21.6 hours Start 2023.11.12 @ 12:08:20 End 2023.11.12 @ 12:25:34 Sessions 1 Manual Loads 0 Difficulty Rogue Special Mode None Game No. 49 Rogue 49 Adventurer 0 Explorer 0 Win Type - Total 0 Types 0/0/0/0/0/0/0/0/0 Lore% 11 Gallery% 23 Achievement% 15 Wizard Run 0 Options --------- ASCII 0 Keyboard 0 Movement Mouse Keybinds 0 Fullscreen 1 Font 24/Smallcaps Map View 76x50 Tactical HUD 1 Map Filters NONE Filters NONE Steam 1 RUN: f60e5e52-2646-4d49-96d8-c40cffd086da